Workbook

Sheet Index
A1: Contents
A2: Standard chart
B3: Demo and explanations
B4: Rain in Europe
B5: VIH in Switzerland 1
B6: Average Swiss income
B7: Working on the axis
A8: Help Excel when automatic chart building isn't satisfactory
B9: Excel limits
B10: VIH in Switzerland 2
B11: Tax
A12: Special
B13: Secondary axis
B14: Error bars
B15: Error bars 2
B16: Trend line
B17: Trend line 2
A18: Examples of less common charts
B19: Bars
B20: Area
B21: Scatter
B22: Swiss population
B23: Fertility rate (* with labels pointing to free cells)
B24: Pie - special
B25: Column and negative values
B26: Radar
B27: Stock
B28: Bubbles
B29: Scatter-bubble
B30: Special bubble : 3 variables for each series
A32: New 2010 : Sparkline charts
B33: Example
A34: Graphic tools
B35: Drawn shapes
B36: SmarArt charts

Sheet Demo
A2:  | B2: How Excel understands your selection
A4:  | B4: A chart can be embedded (by default) or full page
A6: Sales | B6: 2020-01-01 | C6: 2020-02-01 | D6: 2020-03-01 | F6: Sales | G6: Switzerland | H6: France | I6: Italy | J6: Spain | K6: Portugal | L6: Belgium | N6: Sales | O6: Switzerland | P6: France | Q6: Italy
A7: Product 1 | B7: 16894 | C7: 18854 | D7: 23000 | F7: Product 1 | G7: 16894 | H7: 18854 | I7: 23000 | J7: 24000 | K7: 18000 | L7: 21000 | N7: Produtct 1 | O7: 16894 | P7: 18854 | Q7: 23000
A8: Product 2 | B8: 20210 | C8: 19632 | D8: 25784 | F8: Product 2 | G8: 20210 | H8: 19632 | I8: 25784 | J8: 19865 | K8: 21563 | L8: 24789 | N8: Produtct 2 | O8: 20210 | P8: 19632 | Q8: 25784
A9: Product 3 | B9: 18052 | C9: 21135 | D9: 22458 | F9: Product 3 | G9: 23000 | H9: 21135 | I9: 22458 | J9: 23546 | K9: 17896 | L9: 21569 | N9: Produtct 3 | O9: 23000 | P9: 21135 | Q9: 22458
A10: Product 4 | B10: 16000 | C10: 20456 | D10: 24182 | F10: Product 4 | G10: 19580 | H10: 20456 | I10: 24182 | J10: 19000 | K10: 22569 | L10: 18963 | N10: Produtct 4 | O10: 19580 | P10: 20456 | Q10: 24182
N11: Produtct 5 | O11: 24000 | P11: 18000 | Q11: 21000
N12: Produtct 7 | O12: 23546 | P12: 17896 | Q12: 21569
N13: Produtct 8 | O13: 19000 | P13: 22569 | Q13: 18963
A15:  | B15: First actions on the created charts
B18: Special : how to understand empty cells or hidden columns in the source data
A21:  | B21: Working deeply any chart element
A24:  | B24: The new funnel button

Sheet Excel understanding
A2:  | B2: Excel expects DATES (real ones !) - If there are no dates, Excel assumes that the highest number of items corresponds to the future horizontal axis
A4: Sales | B4: 2020-01-01 | C4: 2020-02-01 | D4: 2020-03-01 | F4: Sales | G4: Switzerland | H4: France | I4: Italy | J4: Spain | K4: Portugal | L4: Belgium | N4: Sales | O4: Switzerland | P4: France | Q4: Italy
A5: Product 1 | B5: 16894 | C5: 18854 | D5: 23000 | F5: Product 1 | G5: 16894 | H5: 18854 | I5: 23000 | J5: 24000 | K5: 18000 | L5: 21000 | N5: Produtct 1 | O5: 16894 | P5: 18854 | Q5: 23000
A6: Product 2 | B6: 20210 | C6: 19632 | D6: 25784 | F6: Product 2 | G6: 20210 | H6: 19632 | I6: 25784 | J6: 19865 | K6: 21563 | L6: 24789 | N6: Produtct 2 | O6: 20210 | P6: 19632 | Q6: 25784
A7: Product 3 | B7: 18052 | C7: 21135 | D7: 22458 | F7: Product 3 | G7: 23000 | H7: 21135 | I7: 22458 | J7: 23546 | K7: 17896 | L7: 21569 | N7: Produtct 3 | O7: 23000 | P7: 21135 | Q7: 22458
A8: Product 4 | B8: 16000 | C8: 20456 | D8: 24182 | F8: Product 4 | G8: 19580 | H8: 20456 | I8: 24182 | J8: 19000 | K8: 22569 | L8: 18963 | N8: Produtct 4 | O8: 19580 | P8: 20456 | Q8: 24182
N9: Produtct 5 | O9: 24000 | P9: 18000 | Q9: 21000
N10: Produtct 6 | O10: 19865 | P10: 21563 | Q10: 24789
N11: Produtct 7 | O11: 23546 | P11: 17896 | Q11: 21569
N12: Produtct 8 | O12: 19000 | P12: 22569 | Q12: 18963
N13: Produtct 9 | O13: 21963 | P13: 20147 | Q13: 21963
N14: Produtct 10 | O14: 19635 | P14: 20365 | Q14: 20145

Sheet Embedded chart
A2: Create a chart : use the following methods :
B3: 1 | C3: Select the source data and use the QUICK ANALYSIS BUTTON
B4: 2 | C4: Select the source data and use the RECOMMENDED CHARTS button (on the INSERT Tab)
B5: 3 | C5: Select the source data and choose from the various types (INSERT Tab - CHARTS group)
C6: Give a glance to the full list (Dialog box)
A9:  | B9: An embedded chart is like an object (picture, shape …) | F9: Use handles to size (no need to respect ratio)
F10: Click and drag to move arount
F11: To print data and chart : make sure your active cell is in the sheet
A12: Sales | B12: 2020-01-01 | C12: 2020-02-01 | D12: 2020-03-01 | F12: To print the chart only : chart is active
A13: Product 1 | B13: 16894 | C13: 18854 | D13: 23000
A14: Product 2 | B14: 20210 | C14: 19632 | D14: 25784
A15: Product 3 | B15: 18052 | C15: 21135 | D15: 22458
A16: Product 4 | B16: 16000 | C16: 20456 | D16: 24182
B19: To turn an embedded chart into a full page one : MOVE CHART button (last button on the DESIGN Tab)

Sheet Simple work
A4: DESIGN Tab
A6: The SELECT DATA button to understand the structure of the chart (as understood by Excel)
A7: The SWITCH ROW / COLUMN button to change the understanding
A8: The MOVE CHART button to change the type of chart (embedded or full page)
A9: The CHANGE TYPE button to change the type of chart (column, line, area …)
A10: The STYLE gallery to add some "look" to the chart (also the brush icon at the top right of the chart when you click on it)
A11: The QUICK LAYOUT gallery to add elements (ready made suggestions)
A13: Sales | B13: 2020-01-01 | C13: 2020-02-01 | D13: 2020-03-01
A14: Product 1 | B14: 16894 | C14: 18854 | D14: 23000
A15: Product 2 | B15: 20210 | C15: 19632 | D15: 25784
A16: Product 3 | B16: 18052 | C16: 21135 | D16: 22458
A17: Product 4 | B17: 16000 | C17: 20456 | D17: 24182
A38: Sales | B38: 2020-01-01 | C38: 2020-02-01 | D38: 2020-03-01
A39: Product 1 | B39: 16894 | C39: 18854 | D39: 23000
A40: Product 2 | B40: 20210 | C40: 19632 | D40: 25784
A41: Product 3 | B41: 18052 | C41: 21135 | D41: 22458
A42: Product 4 | B42: 16000 | C42: 20456 | D42: 24182
A43: Product 5 | B43: 20000 | C43: 21000 | D43: 23000
A46: To add a series :
C47: If contiguous : click and drag in the source data
C48: Simple COPY - PASTE
C50: Less comfortable but sometimes handy …
C51: SELECT DATA button

Sheet Manage empty cell & hidden col
A2: Empty cell | J2: Hidden column | M2: Sales | N2: 2020-01-01 | O2: 2020-02-01 | P2: 2020-03-01
M3: Product 1 | N3: 16894 | O3: 18854 | P3: 23000
A4: Sales | B4: 2020-01-01 | C4: 2020-02-01 | D4: 2020-03-01 | M4: Product 2 | N4: 20210 | O4: 19632 | P4: 25784
A5: Product 1 | B5: 16894 | C5: 18854 | D5: 23000 | M5: Product 3 | N5: 18052 | O5: 21135 | P5: 22458
A6: Product 2 | B6: 20000 | D6: 25784 | M6: Product 4 | N6: 16000 | O6: 20456 | P6: 24182
A7: Product 3 | B7: 18052 | C7: 21135 | D7: 22458
A8: Product 4 | B8: 16000 | C8: 20456 | D8: 24182
A9: Product 5 | B9: 20000 | C9: 21000 | D9: 23000
J50: NEW
A58: Sales | B58: 2020-01-01 | C58: 2020-02-01 | D58: 2020-03-01 | E58: 2020-04-01 | F58: 2020-01-01 | G58: 20000
A59: Product 1 | B59: =VLOOKUP(B58,$F$58:$G$65,2,0) -> 20000 | C59: =VLOOKUP(C58,$F$58:$G$65,2,0) ->  | D59: 25000 | E59: 23000 | F59: feb. 2020 | G59: 30000
F60: 2020-03-01 | G60: 25000
F61: 2020-04-01 | G61: 23000 | H61: By default : the #N/A cell is ignored and belongs to the plot | O61: The option is turned on :
F62: 2020-05-01 | G62: 20000
F63: 2020-06-01 | G63: 14000
F64: 2020-07-01 | G64: 10000
F65: 2020-08-01 | G65: 8000

Sheet Working any element
D1: Sales for Switzerland
A2: Sales | B2: 2020-01-01 | C2: 2020-02-01 | D2: 2020-03-01
A3: Product 1 | B3: 16894 | C3: 18854 | D3: 23000
A4: Product 2 | B4: 20210 | C4: 19632 | D4: 25784
A5: Product 3 | B5: 18052 | C5: 21135 | D5: 22458
A6: Product 4 | B6: 16000 | C6: 20456 | D6: 24182
F8: Special - easy : the chart title should point and be linked to a given cell
G10: Click on the chart title (no need to get inside with the cursor, delete any character …)
G11: Type the = sign in the formula bar
G12: Click the cell whose content should be the chart title
G13: Enter
A23:  | B23: Select and show working pane
A25: Double-click on it | E25: ==> | F25: Working pane on the right automatically displayed
A27: Click and FORMAT Tab - first drop-down list on the left | E27: ==> | F27: Click on FORMAT SELECTION to show the working pane
A29: DESIGN Tab and ADD CHART ELEMENT button | E29: ==> | F29: From the drop-down list : ready made suggestions or full options to show the pane
A30: Click on the chart and PLUS button on the top right of it

Sheet Using the funnel button
A4: Year sales | B4: 2010 | C4: 2011 | D4: 2012 | E4: 2013 | F4: 2014 | G4: 2015 | H4: 2016 | I4: 2019 | J4: 2018 | K4: 2019 | L4: 2020 | M4: 2021 | N4: 2022 | O4: 2023 | P4: 2024 | Q4: 2025 | R4: 2026 | S4: 2027 | T4: 2028 | U4: 2029 | V4: 2030
A5: Product 1 | B5: 1100 | C5: 1110 | D5: 1120 | E5: 1130 | F5: 1140 | G5: 1150 | H5: 1160 | I5: 1170 | J5: 1180 | K5: 1190 | L5: 1200 | M5: 1210 | N5: 1220 | O5: 1230 | P5: 1240 | Q5: 1250 | R5: 1260 | S5: 1270 | T5: 1280 | U5: 1290 | V5: 1300
A24: POINT | D24: All the others are greyed out
A25: TICK OFF and then APPLY | D25: Only the selected ones are displayed

Sheet Rain-Europe
B1: Rain average for July
A2: EUROPE | B2: Number of days
A3: Amsterdam | B3: 10
A4: Athens | B4: 1
A5: Barcelona | B5: 5
A6: Berlin | B6: 9
A7: Dublin | B7: 13
A8: Geneva | B8: 9
A9: Istanbul | B9: 3
A10: Lisbon | B10: 3
A11: Madrid | B11: 3
A12: Moscow | B12: 12
A13: Paris | B13: 11
A14: Prague | B14: 10
A15: Rome | B15: 2
A16: Stockholm | B16: 9
A17: Vienna | B17: 9
L23: Chart title
L24: Select the title
L25: Type the = sign in the formula bar
L26: Click on B1
L27: ENTER

Sheet VIH-Switzerland 1
A2: Evolution of AIDS in Switzerland (source : "Bulletin de l'Office Fédéral de la Santé")
A4: Year | B4: 1999-12-31 | C4: 2000-01-01 | D4: 2001-01-01 | E4: 2002-01-01 | F4: 2003-01-01 | G4: 2004-01-01 | H4: 2005-01-01 | I4: 2006-01-01 | J4: 2007-01-01 | K4: 2008-01-01
A5: Casualties - Men | B5: 112 | C5: 116 | D5: 134 | E5: 125 | F5: 94 | G5: 95 | H5: 100 | I5: 70 | J5: 56 | K5: 9
A6: Casualties - Women | B6: 65 | C6: 57 | D6: 55 | E6: 52 | F6: 29 | G6: 36 | H6: 39 | I6: 32 | J6: 14 | K6: 3
A32: Your horizontal axis could well show several occurrences of the years
A33: Simply work the axis : set that the unit should be years and not months

Sheet Average Swiss income
A2: Average expenses for a Swiss Family | C2: - source OFS - year 2011
A3: Average gross income | B3: 9604
A4: Insurance (social and LAMAL basic) | B4: 2646
A5: Monetary transfer to other families | B5: 208
A6: Other Insurance (additional health) | B6: 575
A7: Consumation | B7: 5394
A8: Savings | B8: 781
A9: Total | B9: =SUM(B4:B8) -> 9604
G14: To show connecting lines : simple click and drag the labels a bit - theY automatically follow
G15: To move out one slice : click until only the slice is selected - then drag outside slightly
A40: info 2009 - read in the 20 Minutes - november 2011 | C40: (source OFS)
A42: Gross monthly income | D42: 9369
A43: Tax | B43: 0.12 | C43: =$D$41*B43 -> 0
A44: Social insurance (AVS …) | B44: 0.1 | C44: =$D$41*B44 -> 0
A45: Health insurance | B45: 0.05 | C45: 0
A46: Misceallenous | B46: =C46/D42 -> 0.2903191376 | C46: =C47-SUM(C43:C45) -> 2720
C47: 2720
D49: =D42-C47 -> 6649 | E49: Average monthly net income
A50: House and energy | B50: 0.16 | C50: =$D$42*B50 -> 1499.04
A51: Savings | B51: 0.124 | C51: =$D$42*B51 -> 1161.756
A52: Other charges | B52: 0.154 | C52: 1442.826
A53: Transport | B53: 0.077 | C53: 721.413
A54: Food and beverage | B54: 0.07 | C54: 655.83
A55: Leisure and culture | B55: 0.067 | C55: 627.723
A56: Holidays and restaurant | B56: 0.058 | C56: 543.402
A58: 39% of swiss families : more than one person works
A59: 59% of swiss families : retired people

Sheet World resources
A2: Energetic resources are too used | C2: déc 2009 - when N. Vanier's film Wolf was released
A4: Oil | B4: 0.431
A5: Electricity | B5: 0.167
A6: Gaz | B6: 0.153
A7: Renewable energy & waste | B7: 0.129
A8: Coal | B8: 0.086
A9: Other | B9: 0.034
A11: Total : 8'084 billions of tons "petrol equivalent"

Sheet Working on the axis
A4: Working on the horizontal axis
A11: Year sales | B11: 2020-01-01 | C11: 2020-01-02 | D11: 2020-01-03 | E11: 2020-01-04 | F11: 2020-01-05 | G11: 2020-01-06 | H11: 2020-01-07 | I11: 2020-01-08 | J11: 2020-01-09 | K11: 2020-01-10 | L11: 2020-01-11 | M11: 2020-01-12 | N11: 2020-01-13 | O11: 2020-01-14 | P11: 2020-01-15 | Q11: 2020-01-16 | R11: 2020-01-17 | S11: 2020-01-18 | T11: 2020-01-19 | U11: 2020-01-20 | V11: 2020-01-21 | W11: 2020-01-22 | X11: 2020-01-23 | Y11: 2020-01-24 | Z11: 2020-01-25 | AA11: 2020-01-26 | AB11: 2020-01-27 | AC11: 2020-01-28 | AD11: 2020-01-29 | AE11: 2020-01-30 | AF11: 2020-01-31 | AG11: 2020-02-01 | AH11: 2020-02-02 | AI11: 2020-02-03 | AJ11: 2020-02-04 | AK11: 2020-02-05 | AL11: 2020-02-06 | AM11: 2020-02-07 | AN11: 2020-02-08 | AO11: 2020-02-09 | AP11: 2020-02-10 | AQ11: 2020-02-11 | AR11: 2020-02-12 | AS11: 2020-02-13 | AT11: 2020-02-14 | AU11: 2020-02-15 | AV11: 2020-02-16 | AW11: 2020-02-17 | AX11: 2020-02-18 | AY11: 2020-02-19 | AZ11: 2020-02-20 | BA11: 2020-02-21 | BB11: 2020-02-22 | BC11: 2020-02-23 | BD11: 2020-02-24 | BE11: 2020-02-25 | BF11: 2020-02-26 | BG11: 2020-02-27 | BH11: 2020-02-28 | BI11: 2020-03-01 | BJ11: 2020-03-02 | BK11: 2020-03-03 | BL11: 2020-03-04 | BM11: 2020-03-05 | BN11: 2020-03-06 | BO11: 2020-03-07 | BP11: 2020-03-08 | BQ11: 2020-03-09 | BR11: 2020-03-10 | BS11: 2020-03-11 | BT11: 2020-03-12 | BU11: 2020-03-13 | BV11: 2020-03-14 | BW11: 2020-03-15 | BX11: 2020-03-16 | BY11: 2020-03-17 | BZ11: 2020-03-18 | CA11: 2020-03-19 | CB11: 2020-03-20 | CC11: 2020-03-21 | CD11: 2020-03-22 | CE11: 2020-03-23 | CF11: 2020-03-24 | CG11: 2020-03-25 | CH11: 2020-03-26 | CI11: 2020-03-27 | CJ11: 2020-03-28 | CK11: 2020-03-29 | CL11: 2020-03-30 | CM11: 2020-03-31 | CN11: 2020-04-01 | CO11: 2020-04-02 | CP11: 2020-04-03 | CQ11: 2020-04-04 | CR11: 2020-04-05 | CS11: 2020-04-06 | CT11: 2020-04-07 | CU11: 2020-04-08 | CV11: 2020-04-09 | CW11: 2020-04-10 | CX11: 2020-04-11 | CY11: 2020-04-12 | CZ11: 2020-04-13 | DA11: 2020-04-14 | DB11: 2020-04-15 | DC11: 2020-04-16 | DD11: 2020-04-17 | DE11: 2020-04-18 | DF11: 2020-04-19 | DG11: 2020-04-20 | DH11: 2020-04-21 | DI11: 2020-04-22 | DJ11: 2020-04-23 | DK11: 2020-04-24 | DL11: 2020-04-25 | DM11: 2020-04-26 | DN11: 2020-04-27 | DO11: 2020-04-28 | DP11: 2020-04-29 | DQ11: 2020-04-30 | DR11: 2020-05-01 | DS11: 2020-05-02 | DT11: 2020-05-03 | DU11: 2020-05-04 | DV11: 2020-05-05 | DW11: 2020-05-06 | DX11: 2020-05-07 | DY11: 2020-05-08 | DZ11: 2020-05-09 | EA11: 2020-05-10 | EB11: 2020-05-11 | EC11: 2020-05-12 | ED11: 2020-05-13 | EE11: 2020-05-14 | EF11: 2020-05-15 | EG11: 2020-05-16 | EH11: 2020-05-17 | EI11: 2020-05-18 | EJ11: 2020-05-19 | EK11: 2020-05-20 | EL11: 2020-05-21 | EM11: 2020-05-22 | EN11: 2020-05-23 | EO11: 2020-05-24 | EP11: 2020-05-25 | EQ11: 2020-05-26 | ER11: 2020-05-27 | ES11: 2020-05-28 | ET11: 2020-05-29 | EU11: 2020-05-30 | EV11: 2020-05-31 | EW11: 2020-06-01 | EX11: 2020-06-02 | EY11: 2020-06-03 | EZ11: 2020-06-04 | FA11: 2020-06-05 | FB11: 2020-06-06 | FC11: 2020-06-07 | FD11: 2020-06-08 | FE11: 2020-06-09 | FF11: 2020-06-10 | FG11: 2020-06-11 | FH11: 2020-06-12 | FI11: 2020-06-13 | FJ11: 2020-06-14 | FK11: 2020-06-15 | FL11: 2020-06-16 | FM11: 2020-06-17 | FN11: 2020-06-18 | FO11: 2020-06-19 | FP11: 2020-06-20 | FQ11: 2020-06-21 | FR11: 2020-06-22 | FS11: 2020-06-23 | FT11: 2020-06-24 | FU11: 2020-06-25 | FV11: 2020-06-26 | FW11: 2020-06-27 | FX11: 2020-06-28 | FY11: 2020-06-29 | FZ11: 2020-06-30 | GA11: 2020-07-01 | GB11: 2020-07-02 | GC11: 2020-07-03 | GD11: 2020-07-04 | GE11: 2020-07-05 | GF11: 2020-07-06 | GG11: 2020-07-07 | GH11: 2020-07-08 | GI11: 2020-07-09 | GJ11: 2020-07-10 | GK11: 2020-07-11 | GL11: 2020-07-12 | GM11: 2020-07-13 | GN11: 2020-07-14 | GO11: 2020-07-15 | GP11: 2020-07-16 | GQ11: 2020-07-17 | GR11: 2020-07-18 | GS11: 2020-07-19 | GT11: 2020-07-20 | GU11: 2020-07-21 | GV11: 2020-07-22 | GW11: 2020-07-23 | GX11: 2020-07-24 | GY11: 2020-07-25 | GZ11: 2020-07-26 | HA11: 2020-07-27 | HB11: 2020-07-28 | HC11: 2020-07-29 | HD11: 2020-07-30 | HE11: 2020-07-31 | HF11: 2020-08-01 | HG11: 2020-08-02 | HH11: 2020-08-03 | HI11: 2020-08-04 | HJ11: 2020-08-05 | HK11: 2020-08-06 | HL11: 2020-08-07 | HM11: 2020-08-08 | HN11: 2020-08-09 | HO11: 2020-08-10 | HP11: 2020-08-11 | HQ11: 2020-08-12 | HR11: 2020-08-13 | HS11: 2020-08-14 | HT11: 2020-08-15 | HU11: 2020-08-16 | HV11: 2020-08-17 | HW11: 2020-08-18 | HX11: 2020-08-19 | HY11: 2020-08-20 | HZ11: 2020-08-21 | IA11: 2020-08-22 | IB11: 2020-08-23 | IC11: 2020-08-24 | ID11: 2020-08-25 | IE11: 2020-08-26 | IF11: 2020-08-27 | IG11: 2020-08-28 | IH11: 2020-08-29 | II11: 2020-08-30 | IJ11: 2020-08-31 | IK11: 2020-09-01 | IL11: 2020-09-02 | IM11: 2020-09-03 | IN11: 2020-09-04 | IO11: 2020-09-05 | IP11: 2020-09-06 | IQ11: 2020-09-07 | IR11: 2020-09-08 | IS11: 2020-09-09 | IT11: 2020-09-10 | IU11: 2020-09-11 | IV11: 2020-09-12 | IW11: 2020-09-13 | IX11: 2020-09-14 | IY11: 2020-09-15 | IZ11: 2020-09-16 | JA11: 2020-09-17 | JB11: 2020-09-18 | JC11: 2020-09-19 | JD11: 2020-09-20 | JE11: 2020-09-21 | JF11: 2020-09-22 | JG11: 2020-09-23 | JH11: 2020-09-24 | JI11: 2020-09-25 | JJ11: 2020-09-26 | JK11: 2020-09-27 | JL11: 2020-09-28 | JM11: 2020-09-29 | JN11: 2020-09-30 | JO11: 2020-10-01 | JP11: 2020-10-02 | JQ11: 2020-10-03 | JR11: 2020-10-04 | JS11: 2020-10-05 | JT11: 2020-10-06 | JU11: 2020-10-07 | JV11: 2020-10-08 | JW11: 2020-10-09 | JX11: 2020-10-10 | JY11: 2020-10-11 | JZ11: 2020-10-12 | KA11: 2020-10-13 | KB11: 2020-10-14 | KC11: 2020-10-15 | KD11: 2020-10-16 | KE11: 2020-10-17 | KF11: 2020-10-18 | KG11: 2020-10-19 | KH11: 2020-10-20 | KI11: 2020-10-21 | KJ11: 2020-10-22 | KK11: 2020-10-23 | KL11: 2020-10-24 | KM11: 2020-10-25 | KN11: 2020-10-26 | KO11: 2020-10-27 | KP11: 2020-10-28 | KQ11: 2020-10-29 | KR11: 2020-10-30 | KS11: 2020-10-31 | KT11: 2020-11-01 | KU11: 2020-11-02 | KV11: 2020-11-03 | KW11: 2020-11-04 | KX11: 2020-11-05 | KY11: 2020-11-06 | KZ11: 2020-11-07 | LA11: 2020-11-08 | LB11: 2020-11-09 | LC11: 2020-11-10 | LD11: 2020-11-11 | LE11: 2020-11-12 | LF11: 2020-11-13 | LG11: 2020-11-14 | LH11: 2020-11-15 | LI11: 2020-11-16 | LJ11: 2020-11-17 | LK11: 2020-11-18 | LL11: 2020-11-19 | LM11: 2020-11-20 | LN11: 2020-11-21 | LO11: 2020-11-22 | LP11: 2020-11-23 | LQ11: 2020-11-24 | LR11: 2020-11-25 | LS11: 2020-11-26 | LT11: 2020-11-27 | LU11: 2020-11-28 | LV11: 2020-11-29 | LW11: 2020-11-30 | LX11: 2020-12-01 | LY11: 2020-12-02 | LZ11: 2020-12-03 | MA11: 2020-12-04 | MB11: 2020-12-05 | MC11: 2020-12-06 | MD11: 2020-12-07 | ME11: 2020-12-08 | MF11: 2020-12-09 | MG11: 2020-12-10 | MH11: 2020-12-11 | MI11: 2020-12-12 | MJ11: 2020-12-13 | MK11: 2020-12-14 | ML11: 2020-12-15 | MM11: 2020-12-16 | MN11: 2020-12-17 | MO11: 2020-12-18 | MP11: 2020-12-19 | MQ11: 2020-12-20 | MR11: 2020-12-21 | MS11: 2020-12-22 | MT11: 2020-12-23 | MU11: 2020-12-24 | MV11: 2020-12-25 | MW11: 2020-12-26 | MX11: 2020-12-27 | MY11: 2020-12-28 | MZ11: 2020-12-29 | NA11: 2020-12-30 | NB11: 2020-12-31
A12: Product 1 | B12: 1000 | C12: 1010 | D12: 1020 | E12: 1030 | F12: 1040 | G12: 1050 | H12: 1060 | I12: 1070 | J12: 1080 | K12: 1090 | L12: 1100 | M12: 1110 | N12: 1120 | O12: 1130 | P12: 1140 | Q12: 1150 | R12: 1160 | S12: 1170 | T12: 1180 | U12: 1190 | V12: 1200 | W12: 1210 | X12: 1220 | Y12: 1230 | Z12: 1240 | AA12: 1250 | AB12: 1260 | AC12: 1270 | AD12: 1280 | AE12: 1290 | AF12: 1300 | AG12: 1310 | AH12: 1320 | AI12: 1330 | AJ12: 1340 | AK12: 1350 | AL12: 1360 | AM12: 1370 | AN12: 1380 | AO12: 1390 | AP12: 1400 | AQ12: 1410 | AR12: 1420 | AS12: 1430 | AT12: 1440 | AU12: 1450 | AV12: 1460 | AW12: 1470 | AX12: 1480 | AY12: 1490 | AZ12: 1500 | BA12: 1510 | BB12: 1520 | BC12: 1530 | BD12: 1540 | BE12: 1550 | BF12: 1560 | BG12: 1570 | BH12: 1580 | BI12: 1590 | BJ12: 1600 | BK12: 1610 | BL12: 1620 | BM12: 1630 | BN12: 1640 | BO12: 1650 | BP12: 1660 | BQ12: 1670 | BR12: 1680 | BS12: 1690 | BT12: 1700 | BU12: 1710 | BV12: 1720 | BW12: 1730 | BX12: 1740 | BY12: 1750 | BZ12: 1760 | CA12: 1770 | CB12: 1780 | CC12: 1790 | CD12: 1800 | CE12: 1810 | CF12: 1820 | CG12: 1830 | CH12: 1840 | CI12: 1850 | CJ12: 1860 | CK12: 1870 | CL12: 1880 | CM12: 1890 | CN12: 1900 | CO12: 1910 | CP12: 1920 | CQ12: 1930 | CR12: 1940 | CS12: 1950 | CT12: 1960 | CU12: 1970 | CV12: 1980 | CW12: 1990 | CX12: 2000 | CY12: 2010 | CZ12: 2020 | DA12: 2030 | DB12: 2040 | DC12: 2050 | DD12: 2060 | DE12: 2070 | DF12: 2080 | DG12: 2090 | DH12: 2100 | DI12: 2110 | DJ12: 2120 | DK12: 2130 | DL12: 2140 | DM12: 2150 | DN12: 2160 | DO12: 2170 | DP12: 2180 | DQ12: 2190 | DR12: 2200 | DS12: 2210 | DT12: 2220 | DU12: 2230 | DV12: 2240 | DW12: 2250 | DX12: 2260 | DY12: 2270 | DZ12: 2280 | EA12: 2290 | EB12: 2300 | EC12: 2310 | ED12: 2320 | EE12: 2330 | EF12: 2340 | EG12: 2350 | EH12: 2360 | EI12: 2370 | EJ12: 2380 | EK12: 2390 | EL12: 2400 | EM12: 2410 | EN12: 2420 | EO12: 2430 | EP12: 2440 | EQ12: 2450 | ER12: 2460 | ES12: 2470 | ET12: 2480 | EU12: 2490 | EV12: 2500 | EW12: 2510 | EX12: 2520 | EY12: 2530 | EZ12: 2540 | FA12: 2550 | FB12: 2560 | FC12: 2570 | FD12: 2580 | FE12: 2590 | FF12: 2600 | FG12: 2610 | FH12: 2620 | FI12: 2630 | FJ12: 2640 | FK12: 2650 | FL12: 2660 | FM12: 2670 | FN12: 2680 | FO12: 2690 | FP12: 2700 | FQ12: 2710 | FR12: 2720 | FS12: 2730 | FT12: 2740 | FU12: 2750 | FV12: 2760 | FW12: 2770 | FX12: 2780 | FY12: 2790 | FZ12: 2800 | GA12: 2810 | GB12: 2820 | GC12: 2830 | GD12: 2840 | GE12: 2850 | GF12: 2860 | GG12: 2870 | GH12: 2880 | GI12: 2890 | GJ12: 2900 | GK12: 2910 | GL12: 2920 | GM12: 2930 | GN12: 2940 | GO12: 2950 | GP12: 2960 | GQ12: 2970 | GR12: 2980 | GS12: 2990 | GT12: 3000 | GU12: 3010 | GV12: 3020 | GW12: 3030 | GX12: 3040 | GY12: 3050 | GZ12: 3060 | HA12: 3070 | HB12: 3080 | HC12: 3090 | HD12: 3100 | HE12: 3110 | HF12: 3120 | HG12: 3130 | HH12: 3140 | HI12: 3150 | HJ12: 3160 | HK12: 3170 | HL12: 3180 | HM12: 3190 | HN12: 3200 | HO12: 3210 | HP12: 3220 | HQ12: 3230 | HR12: 3240 | HS12: 3250 | HT12: 3260 | HU12: 3270 | HV12: 3280 | HW12: 3290 | HX12: 3300 | HY12: 3310 | HZ12: 3320 | IA12: 3330 | IB12: 3340 | IC12: 3350 | ID12: 3360 | IE12: 3370 | IF12: 3380 | IG12: 3390 | IH12: 3400 | II12: 3410 | IJ12: 3420 | IK12: 3430 | IL12: 3440 | IM12: 3450 | IN12: 3460 | IO12: 3470 | IP12: 3480 | IQ12: 3490 | IR12: 3500 | IS12: 3510 | IT12: 3520 | IU12: 3530 | IV12: 3540 | IW12: 3550 | IX12: 3560 | IY12: 3570 | IZ12: 3580 | JA12: 3590 | JB12: 3600 | JC12: 3610 | JD12: 3620 | JE12: 3630 | JF12: 3640 | JG12: 3650 | JH12: 3660 | JI12: 3670 | JJ12: 3680 | JK12: 3690 | JL12: 3700 | JM12: 3710 | JN12: 3720 | JO12: 3730 | JP12: 3740 | JQ12: 3750 | JR12: 3760 | JS12: 3770 | JT12: 3780 | JU12: 3790 | JV12: 3800 | JW12: 3810 | JX12: 3820 | JY12: 3830 | JZ12: 3840 | KA12: 3850 | KB12: 3860 | KC12: 3870 | KD12: 3880 | KE12: 3890 | KF12: 3900 | KG12: 3910 | KH12: 3920 | KI12: 3930 | KJ12: 3940 | KK12: 3950 | KL12: 3960 | KM12: 3970 | KN12: 3980 | KO12: 3990 | KP12: 4000 | KQ12: 4010 | KR12: 4020 | KS12: 4030 | KT12: 4040 | KU12: 4050 | KV12: 4060 | KW12: 4070 | KX12: 4080 | KY12: 4090 | KZ12: 4100 | LA12: 4110 | LB12: 4120 | LC12: 4130 | LD12: 4140 | LE12: 4150 | LF12: 4160 | LG12: 4170 | LH12: 4180 | LI12: 4190 | LJ12: 4200 | LK12: 4210 | LL12: 4220 | LM12: 4230 | LN12: 4240 | LO12: 4250 | LP12: 4260 | LQ12: 4270 | LR12: 4280 | LS12: 4290 | LT12: 4300 | LU12: 4310 | LV12: 4320 | LW12: 4330 | LX12: 4340 | LY12: 4350 | LZ12: 4360 | MA12: 4370 | MB12: 4380 | MC12: 4390 | MD12: 4400 | ME12: 4410 | MF12: 4420 | MG12: 4430 | MH12: 4440 | MI12: 4450 | MJ12: 4460 | MK12: 4470 | ML12: 4480 | MM12: 4490 | MN12: 4500 | MO12: 4510 | MP12: 4520 | MQ12: 4530 | MR12: 4540 | MS12: 4550 | MT12: 4560 | MU12: 4570 | MV12: 4580 | MW12: 4590 | MX12: 4600 | MY12: 4610 | MZ12: 4620 | NA12: 4630 | NB12: 4640
A36: Year sales | B36: 2000 | C36: 2001 | D36: 2002 | E36: 2003 | F36: 2004 | G36: 2005 | H36: 2006 | I36: 2007 | J36: 2008 | K36: 2010 | L36: 2011 | M36: 2012 | N36: 2013 | O36: 2014 | P36: 2015 | Q36: 2016 | R36: 2017 | S36: 2018 | T36: 2019 | U36: 2020 | V36: 2021 | W36: 2022 | X36: 2023 | Y36: 2024 | Z36: 2025 | AA36: 2026 | AB36: 2027 | AC36: 2028 | AD36: 2029 | AE36: 2030
A37: Product 1 | B37: 1000 | C37: 1010 | D37: 1020 | E37: 1030 | F37: 1040 | G37: 1050 | H37: 1060 | I37: 1070 | J37: 1080 | K37: 1090 | L37: 1100 | M37: 1110 | N37: 1120 | O37: 1130 | P37: 1140 | Q37: 1150 | R37: 1160 | S37: 1170 | T37: 1180 | U37: 1190 | V37: 1200 | W37: 1210 | X37: 1220 | Y37: 1230 | Z37: 1240 | AA37: 1250 | AB37: 1260 | AC37: 1270 | AD37: 1280 | AE37: 1290

Sheet Working on the axis - Answers
A4: Working on the horizontal axis
A10: Year sales | B10: 2020-01-01 | C10: 2020-01-02 | D10: 2020-01-03 | E10: 2020-01-04 | F10: 2020-01-05 | G10: 2020-01-06 | H10: 2020-01-07 | I10: 2020-01-08 | J10: 2020-01-09 | K10: 2020-01-10 | L10: 2020-01-11 | M10: 2020-01-12 | N10: 2020-01-13 | O10: 2020-01-14 | P10: 2020-01-15 | Q10: 2020-01-16 | R10: 2020-01-17 | S10: 2020-01-18 | T10: 2020-01-19 | U10: 2020-01-20 | V10: 2020-01-21 | W10: 2020-01-22 | X10: 2020-01-23 | Y10: 2020-01-24 | Z10: 2020-01-25 | AA10: 2020-01-26 | AB10: 2020-01-27 | AC10: 2020-01-28 | AD10: 2020-01-29 | AE10: 2020-01-30 | AF10: 2020-01-31 | AG10: 2020-02-01 | AH10: 2020-02-02 | AI10: 2020-02-03 | AJ10: 2020-02-04 | AK10: 2020-02-05 | AL10: 2020-02-06 | AM10: 2020-02-07 | AN10: 2020-02-08 | AO10: 2020-02-09 | AP10: 2020-02-10 | AQ10: 2020-02-11 | AR10: 2020-02-12 | AS10: 2020-02-13 | AT10: 2020-02-14 | AU10: 2020-02-15 | AV10: 2020-02-16 | AW10: 2020-02-17 | AX10: 2020-02-18 | AY10: 2020-02-19 | AZ10: 2020-02-20 | BA10: 2020-02-21 | BB10: 2020-02-22 | BC10: 2020-02-23 | BD10: 2020-02-24 | BE10: 2020-02-25 | BF10: 2020-02-26 | BG10: 2020-02-27 | BH10: 2020-02-28 | BI10: 2020-03-01 | BJ10: 2020-03-02 | BK10: 2020-03-03 | BL10: 2020-03-04 | BM10: 2020-03-05 | BN10: 2020-03-06 | BO10: 2020-03-07 | BP10: 2020-03-08 | BQ10: 2020-03-09 | BR10: 2020-03-10 | BS10: 2020-03-11 | BT10: 2020-03-12 | BU10: 2020-03-13 | BV10: 2020-03-14 | BW10: 2020-03-15 | BX10: 2020-03-16 | BY10: 2020-03-17 | BZ10: 2020-03-18 | CA10: 2020-03-19 | CB10: 2020-03-20 | CC10: 2020-03-21 | CD10: 2020-03-22 | CE10: 2020-03-23 | CF10: 2020-03-24 | CG10: 2020-03-25 | CH10: 2020-03-26 | CI10: 2020-03-27 | CJ10: 2020-03-28 | CK10: 2020-03-29 | CL10: 2020-03-30 | CM10: 2020-03-31 | CN10: 2020-04-01 | CO10: 2020-04-02 | CP10: 2020-04-03 | CQ10: 2020-04-04 | CR10: 2020-04-05 | CS10: 2020-04-06 | CT10: 2020-04-07 | CU10: 2020-04-08 | CV10: 2020-04-09 | CW10: 2020-04-10 | CX10: 2020-04-11 | CY10: 2020-04-12 | CZ10: 2020-04-13 | DA10: 2020-04-14 | DB10: 2020-04-15 | DC10: 2020-04-16 | DD10: 2020-04-17 | DE10: 2020-04-18 | DF10: 2020-04-19 | DG10: 2020-04-20 | DH10: 2020-04-21 | DI10: 2020-04-22 | DJ10: 2020-04-23 | DK10: 2020-04-24 | DL10: 2020-04-25 | DM10: 2020-04-26 | DN10: 2020-04-27 | DO10: 2020-04-28 | DP10: 2020-04-29 | DQ10: 2020-04-30 | DR10: 2020-05-01 | DS10: 2020-05-02 | DT10: 2020-05-03 | DU10: 2020-05-04 | DV10: 2020-05-05 | DW10: 2020-05-06 | DX10: 2020-05-07 | DY10: 2020-05-08 | DZ10: 2020-05-09 | EA10: 2020-05-10 | EB10: 2020-05-11 | EC10: 2020-05-12 | ED10: 2020-05-13 | EE10: 2020-05-14 | EF10: 2020-05-15 | EG10: 2020-05-16 | EH10: 2020-05-17 | EI10: 2020-05-18 | EJ10: 2020-05-19 | EK10: 2020-05-20 | EL10: 2020-05-21 | EM10: 2020-05-22 | EN10: 2020-05-23 | EO10: 2020-05-24 | EP10: 2020-05-25 | EQ10: 2020-05-26 | ER10: 2020-05-27 | ES10: 2020-05-28 | ET10: 2020-05-29 | EU10: 2020-05-30 | EV10: 2020-05-31 | EW10: 2020-06-01 | EX10: 2020-06-02 | EY10: 2020-06-03 | EZ10: 2020-06-04 | FA10: 2020-06-05 | FB10: 2020-06-06 | FC10: 2020-06-07 | FD10: 2020-06-08 | FE10: 2020-06-09 | FF10: 2020-06-10 | FG10: 2020-06-11 | FH10: 2020-06-12 | FI10: 2020-06-13 | FJ10: 2020-06-14 | FK10: 2020-06-15 | FL10: 2020-06-16 | FM10: 2020-06-17 | FN10: 2020-06-18 | FO10: 2020-06-19 | FP10: 2020-06-20 | FQ10: 2020-06-21 | FR10: 2020-06-22 | FS10: 2020-06-23 | FT10: 2020-06-24 | FU10: 2020-06-25 | FV10: 2020-06-26 | FW10: 2020-06-27 | FX10: 2020-06-28 | FY10: 2020-06-29 | FZ10: 2020-06-30 | GA10: 2020-07-01 | GB10: 2020-07-02 | GC10: 2020-07-03 | GD10: 2020-07-04 | GE10: 2020-07-05 | GF10: 2020-07-06 | GG10: 2020-07-07 | GH10: 2020-07-08 | GI10: 2020-07-09 | GJ10: 2020-07-10 | GK10: 2020-07-11 | GL10: 2020-07-12 | GM10: 2020-07-13 | GN10: 2020-07-14 | GO10: 2020-07-15 | GP10: 2020-07-16 | GQ10: 2020-07-17 | GR10: 2020-07-18 | GS10: 2020-07-19 | GT10: 2020-07-20 | GU10: 2020-07-21 | GV10: 2020-07-22 | GW10: 2020-07-23 | GX10: 2020-07-24 | GY10: 2020-07-25 | GZ10: 2020-07-26 | HA10: 2020-07-27 | HB10: 2020-07-28 | HC10: 2020-07-29 | HD10: 2020-07-30 | HE10: 2020-07-31 | HF10: 2020-08-01 | HG10: 2020-08-02 | HH10: 2020-08-03 | HI10: 2020-08-04 | HJ10: 2020-08-05 | HK10: 2020-08-06 | HL10: 2020-08-07 | HM10: 2020-08-08 | HN10: 2020-08-09 | HO10: 2020-08-10 | HP10: 2020-08-11 | HQ10: 2020-08-12 | HR10: 2020-08-13 | HS10: 2020-08-14 | HT10: 2020-08-15 | HU10: 2020-08-16 | HV10: 2020-08-17 | HW10: 2020-08-18 | HX10: 2020-08-19 | HY10: 2020-08-20 | HZ10: 2020-08-21 | IA10: 2020-08-22 | IB10: 2020-08-23 | IC10: 2020-08-24 | ID10: 2020-08-25 | IE10: 2020-08-26 | IF10: 2020-08-27 | IG10: 2020-08-28 | IH10: 2020-08-29 | II10: 2020-08-30 | IJ10: 2020-08-31 | IK10: 2020-09-01 | IL10: 2020-09-02 | IM10: 2020-09-03 | IN10: 2020-09-04 | IO10: 2020-09-05 | IP10: 2020-09-06 | IQ10: 2020-09-07 | IR10: 2020-09-08 | IS10: 2020-09-09 | IT10: 2020-09-10 | IU10: 2020-09-11 | IV10: 2020-09-12 | IW10: 2020-09-13 | IX10: 2020-09-14 | IY10: 2020-09-15 | IZ10: 2020-09-16 | JA10: 2020-09-17 | JB10: 2020-09-18 | JC10: 2020-09-19 | JD10: 2020-09-20 | JE10: 2020-09-21 | JF10: 2020-09-22 | JG10: 2020-09-23 | JH10: 2020-09-24 | JI10: 2020-09-25 | JJ10: 2020-09-26 | JK10: 2020-09-27 | JL10: 2020-09-28 | JM10: 2020-09-29 | JN10: 2020-09-30 | JO10: 2020-10-01 | JP10: 2020-10-02 | JQ10: 2020-10-03 | JR10: 2020-10-04 | JS10: 2020-10-05 | JT10: 2020-10-06 | JU10: 2020-10-07 | JV10: 2020-10-08 | JW10: 2020-10-09 | JX10: 2020-10-10 | JY10: 2020-10-11 | JZ10: 2020-10-12 | KA10: 2020-10-13 | KB10: 2020-10-14 | KC10: 2020-10-15 | KD10: 2020-10-16 | KE10: 2020-10-17 | KF10: 2020-10-18 | KG10: 2020-10-19 | KH10: 2020-10-20 | KI10: 2020-10-21 | KJ10: 2020-10-22 | KK10: 2020-10-23 | KL10: 2020-10-24 | KM10: 2020-10-25 | KN10: 2020-10-26 | KO10: 2020-10-27 | KP10: 2020-10-28 | KQ10: 2020-10-29 | KR10: 2020-10-30 | KS10: 2020-10-31 | KT10: 2020-11-01 | KU10: 2020-11-02 | KV10: 2020-11-03 | KW10: 2020-11-04 | KX10: 2020-11-05 | KY10: 2020-11-06 | KZ10: 2020-11-07 | LA10: 2020-11-08 | LB10: 2020-11-09 | LC10: 2020-11-10 | LD10: 2020-11-11 | LE10: 2020-11-12 | LF10: 2020-11-13 | LG10: 2020-11-14 | LH10: 2020-11-15 | LI10: 2020-11-16 | LJ10: 2020-11-17 | LK10: 2020-11-18 | LL10: 2020-11-19 | LM10: 2020-11-20 | LN10: 2020-11-21 | LO10: 2020-11-22 | LP10: 2020-11-23 | LQ10: 2020-11-24 | LR10: 2020-11-25 | LS10: 2020-11-26 | LT10: 2020-11-27 | LU10: 2020-11-28 | LV10: 2020-11-29 | LW10: 2020-11-30 | LX10: 2020-12-01 | LY10: 2020-12-02 | LZ10: 2020-12-03 | MA10: 2020-12-04 | MB10: 2020-12-05 | MC10: 2020-12-06 | MD10: 2020-12-07 | ME10: 2020-12-08 | MF10: 2020-12-09 | MG10: 2020-12-10 | MH10: 2020-12-11 | MI10: 2020-12-12 | MJ10: 2020-12-13 | MK10: 2020-12-14 | ML10: 2020-12-15 | MM10: 2020-12-16 | MN10: 2020-12-17 | MO10: 2020-12-18 | MP10: 2020-12-19 | MQ10: 2020-12-20 | MR10: 2020-12-21 | MS10: 2020-12-22 | MT10: 2020-12-23 | MU10: 2020-12-24 | MV10: 2020-12-25 | MW10: 2020-12-26 | MX10: 2020-12-27 | MY10: 2020-12-28 | MZ10: 2020-12-29 | NA10: 2020-12-30 | NB10: 2020-12-31
A11: Product 1 | B11: 1000 | C11: 1010 | D11: 1020 | E11: 1030 | F11: 1040 | G11: 1050 | H11: 1060 | I11: 1070 | J11: 1080 | K11: 1090 | L11: 1100 | M11: 1110 | N11: 1120 | O11: 1130 | P11: 1140 | Q11: 1150 | R11: 1160 | S11: 1170 | T11: 1180 | U11: 1190 | V11: 1200 | W11: 1210 | X11: 1220 | Y11: 1230 | Z11: 1240 | AA11: 1250 | AB11: 1260 | AC11: 1270 | AD11: 1280 | AE11: 1290 | AF11: 1300 | AG11: 1310 | AH11: 1320 | AI11: 1330 | AJ11: 1340 | AK11: 1350 | AL11: 1360 | AM11: 1370 | AN11: 1380 | AO11: 1390 | AP11: 1400 | AQ11: 1410 | AR11: 1420 | AS11: 1430 | AT11: 1440 | AU11: 1450 | AV11: 1460 | AW11: 1470 | AX11: 1480 | AY11: 1490 | AZ11: 1500 | BA11: 1510 | BB11: 1520 | BC11: 1530 | BD11: 1540 | BE11: 1550 | BF11: 1560 | BG11: 1570 | BH11: 1580 | BI11: 1590 | BJ11: 1600 | BK11: 1610 | BL11: 1620 | BM11: 1630 | BN11: 1640 | BO11: 1650 | BP11: 1660 | BQ11: 1670 | BR11: 1680 | BS11: 1690 | BT11: 1700 | BU11: 1710 | BV11: 1720 | BW11: 1730 | BX11: 1740 | BY11: 1750 | BZ11: 1760 | CA11: 1770 | CB11: 1780 | CC11: 1790 | CD11: 1800 | CE11: 1810 | CF11: 1820 | CG11: 1830 | CH11: 1840 | CI11: 1850 | CJ11: 1860 | CK11: 1870 | CL11: 1880 | CM11: 1890 | CN11: 1900 | CO11: 1910 | CP11: 1920 | CQ11: 1930 | CR11: 1940 | CS11: 1950 | CT11: 1960 | CU11: 1970 | CV11: 1980 | CW11: 1990 | CX11: 2000 | CY11: 2010 | CZ11: 2020 | DA11: 2030 | DB11: 2040 | DC11: 2050 | DD11: 2060 | DE11: 2070 | DF11: 2080 | DG11: 2090 | DH11: 2100 | DI11: 2110 | DJ11: 2120 | DK11: 2130 | DL11: 2140 | DM11: 2150 | DN11: 2160 | DO11: 2170 | DP11: 2180 | DQ11: 2190 | DR11: 2200 | DS11: 2210 | DT11: 2220 | DU11: 2230 | DV11: 2240 | DW11: 2250 | DX11: 2260 | DY11: 2270 | DZ11: 2280 | EA11: 2290 | EB11: 2300 | EC11: 2310 | ED11: 2320 | EE11: 2330 | EF11: 2340 | EG11: 2350 | EH11: 2360 | EI11: 2370 | EJ11: 2380 | EK11: 2390 | EL11: 2400 | EM11: 2410 | EN11: 2420 | EO11: 2430 | EP11: 2440 | EQ11: 2450 | ER11: 2460 | ES11: 2470 | ET11: 2480 | EU11: 2490 | EV11: 2500 | EW11: 2510 | EX11: 2520 | EY11: 2530 | EZ11: 2540 | FA11: 2550 | FB11: 2560 | FC11: 2570 | FD11: 2580 | FE11: 2590 | FF11: 2600 | FG11: 2610 | FH11: 2620 | FI11: 2630 | FJ11: 2640 | FK11: 2650 | FL11: 2660 | FM11: 2670 | FN11: 2680 | FO11: 2690 | FP11: 2700 | FQ11: 2710 | FR11: 2720 | FS11: 2730 | FT11: 2740 | FU11: 2750 | FV11: 2760 | FW11: 2770 | FX11: 2780 | FY11: 2790 | FZ11: 2800 | GA11: 2810 | GB11: 2820 | GC11: 2830 | GD11: 2840 | GE11: 2850 | GF11: 2860 | GG11: 2870 | GH11: 2880 | GI11: 2890 | GJ11: 2900 | GK11: 2910 | GL11: 2920 | GM11: 2930 | GN11: 2940 | GO11: 2950 | GP11: 2960 | GQ11: 2970 | GR11: 2980 | GS11: 2990 | GT11: 3000 | GU11: 3010 | GV11: 3020 | GW11: 3030 | GX11: 3040 | GY11: 3050 | GZ11: 3060 | HA11: 3070 | HB11: 3080 | HC11: 3090 | HD11: 3100 | HE11: 3110 | HF11: 3120 | HG11: 3130 | HH11: 3140 | HI11: 3150 | HJ11: 3160 | HK11: 3170 | HL11: 3180 | HM11: 3190 | HN11: 3200 | HO11: 3210 | HP11: 3220 | HQ11: 3230 | HR11: 3240 | HS11: 3250 | HT11: 3260 | HU11: 3270 | HV11: 3280 | HW11: 3290 | HX11: 3300 | HY11: 3310 | HZ11: 3320 | IA11: 3330 | IB11: 3340 | IC11: 3350 | ID11: 3360 | IE11: 3370 | IF11: 3380 | IG11: 3390 | IH11: 3400 | II11: 3410 | IJ11: 3420 | IK11: 3430 | IL11: 3440 | IM11: 3450 | IN11: 3460 | IO11: 3470 | IP11: 3480 | IQ11: 3490 | IR11: 3500 | IS11: 3510 | IT11: 3520 | IU11: 3530 | IV11: 3540 | IW11: 3550 | IX11: 3560 | IY11: 3570 | IZ11: 3580 | JA11: 3590 | JB11: 3600 | JC11: 3610 | JD11: 3620 | JE11: 3630 | JF11: 3640 | JG11: 3650 | JH11: 3660 | JI11: 3670 | JJ11: 3680 | JK11: 3690 | JL11: 3700 | JM11: 3710 | JN11: 3720 | JO11: 3730 | JP11: 3740 | JQ11: 3750 | JR11: 3760 | JS11: 3770 | JT11: 3780 | JU11: 3790 | JV11: 3800 | JW11: 3810 | JX11: 3820 | JY11: 3830 | JZ11: 3840 | KA11: 3850 | KB11: 3860 | KC11: 3870 | KD11: 3880 | KE11: 3890 | KF11: 3900 | KG11: 3910 | KH11: 3920 | KI11: 3930 | KJ11: 3940 | KK11: 3950 | KL11: 3960 | KM11: 3970 | KN11: 3980 | KO11: 3990 | KP11: 4000 | KQ11: 4010 | KR11: 4020 | KS11: 4030 | KT11: 4040 | KU11: 4050 | KV11: 4060 | KW11: 4070 | KX11: 4080 | KY11: 4090 | KZ11: 4100 | LA11: 4110 | LB11: 4120 | LC11: 4130 | LD11: 4140 | LE11: 4150 | LF11: 4160 | LG11: 4170 | LH11: 4180 | LI11: 4190 | LJ11: 4200 | LK11: 4210 | LL11: 4220 | LM11: 4230 | LN11: 4240 | LO11: 4250 | LP11: 4260 | LQ11: 4270 | LR11: 4280 | LS11: 4290 | LT11: 4300 | LU11: 4310 | LV11: 4320 | LW11: 4330 | LX11: 4340 | LY11: 4350 | LZ11: 4360 | MA11: 4370 | MB11: 4380 | MC11: 4390 | MD11: 4400 | ME11: 4410 | MF11: 4420 | MG11: 4430 | MH11: 4440 | MI11: 4450 | MJ11: 4460 | MK11: 4470 | ML11: 4480 | MM11: 4490 | MN11: 4500 | MO11: 4510 | MP11: 4520 | MQ11: 4530 | MR11: 4540 | MS11: 4550 | MT11: 4560 | MU11: 4570 | MV11: 4580 | MW11: 4590 | MX11: 4600 | MY11: 4610 | MZ11: 4620 | NA11: 4630 | NB11: 4640
A35: Year sales | B35: 2000 | C35: 2001 | D35: 2002 | E35: 2003 | F35: 2004 | G35: 2005 | H35: 2006 | I35: 2007 | J35: 2008 | K35: 2010 | L35: 2011 | M35: 2012 | N35: 2013 | O35: 2014 | P35: 2015 | Q35: 2016 | R35: 2017 | S35: 2018 | T35: 2019 | U35: 2020 | V35: 2021 | W35: 2022 | X35: 2023 | Y35: 2024 | Z35: 2025 | AA35: 2026 | AB35: 2027 | AC35: 2028 | AD35: 2029 | AE35: 2030
A36: Product 1 | B36: 1000 | C36: 1010 | D36: 1020 | E36: 1030 | F36: 1040 | G36: 1050 | H36: 1060 | I36: 1070 | J36: 1080 | K36: 1090 | L36: 1100 | M36: 1110 | N36: 1120 | O36: 1130 | P36: 1140 | Q36: 1150 | R36: 1160 | S36: 1170 | T36: 1180 | U36: 1190 | V36: 1200 | W36: 1210 | X36: 1220 | Y36: 1230 | Z36: 1240 | AA36: 1250 | AB36: 1260 | AC36: 1270 | AD36: 1280 | AE36: 1290

Sheet Excel limits
A2: IBB Bank (Geneva)
A4: Amount | B4: 400000
A5: Rate | B5: 0.015
A6: Number of years | B6: 25
A8: Reimbursement Schedule
A9: Year | B9: Interest | C9: Reimbursement | D9: Fixed Annuity
A10: 1 | B10: =-IPMT($B$5,A10,$B$6,$B$4) -> 6000 | C10: =-PPMT($B$5,A10,$B$6,$B$4) -> 13305.38156 | D10: =-PMT($B$5,B6,$B$4) -> 19305.38156
A11: 3 | B11: 5597.844842 | C11: 13707.53672
A12: 5 | B12: 5183.534545 | C12: 14121.84702
A13: 7 | B13: 4756.701719 | C13: 14548.67984
A14: 9 | B14: 4316.967871 | C14: 14988.41369
A15: 11 | B15: 3863.943067 | C15: 15441.4385
A16: 13 | B16: 3397.225588 | C16: 15908.15597
A17: 15 | B17: 2916.401574 | C17: 16388.97999
A18: 17 | B18: 2421.044654 | C18: 16884.33691
A19: 19 | B19: 1910.715571 | C19: 17394.66599
A20: 21 | B20: 1384.961791 | C20: 17920.41977
A21: 23 | B21: =-IPMT($B$5,A21,$B$6,$B$4) -> 843.3171036 | C21: =-PPMT($B$5,A21,$B$6,$B$4) -> 18462.06446
A22: 25 | B22: 285.3012053 | C22: 19020.08036
D29: Hints
D30: Excel cannot automatically detect that the analysis is done "by year"
D31: If selected, the year column is understood as a series !
D32: If not selected, the horizontal axis shows : 1-2-3-4 instead of 1-3-5-7 …
D34: Whatever : button SELECT DATA and remove extra series and
D35: select correct source data for horizontal axis
D38: It is also possible to create such a chart using a SCATTER type (linked points)
D39: Select from A9 to C20
D40: But still necessary to select correct source data for horizontal axis and more annoying :
D41: it does not go by 1-3-5 … if you set the major unit to go by 2 you will get 0-2-4-5 …
D42: therefore : lines are better ….

Sheet VIH-Switzerland 2
A2: Evolution of AIDS in Switzerland (source : Office Fédéral de la Statistique)
A4: Year | B4: 1999 | C4: 2000 | D4: 2001 | E4: 2002 | F4: 2003 | G4: 2004 | H4: 2005 | I4: 2006 | J4: 2007 | K4: 2008
A5: Casualties - Men | B5: 112 | C5: 116 | D5: 134 | E5: 125 | F5: 94 | G5: 95 | H5: 100 | I5: 70 | J5: 56 | K5: 9
A6: Casualties - Women | B6: 65 | C6: 57 | D6: 55 | E6: 52 | F6: 29 | G6: 36 | H6: 39 | I6: 32 | J6: 14 | K6: 3
G17: from
I18: Hints
I19: Same as previous exercice
I20: Simply remove the false "Testing year" series
I21: And retrieve X axis labels
I26: to

Sheet Tax
H8: Here below the chart built on the "green" selection :
A9: INCOME | B9: January | C9: February | D9: March | E9: April | F9: May | G9: June
A10: Systems | B10: 150000 | C10: 100000 | D10: 115000 | E10: 115000 | F10: 90000 | G10: 98000
A11: Software | B11: 95000 | C11: 40000 | D11: 50000 | E11: 50000 | F11: 48000 | G11: 36000
A12: Hardware | B12: 25000 | C12: 10000 | D12: 8000 | E12: 7500 | F12: 9800 | G12: 10000
A13: Services | B13: 63000 | C13: 50000 | D13: 45000 | E13: 47000 | F13: 59000 | G13: 48000
A14: Total income | B14: =SUM(B10:B13) -> 333000 | C14: 200000 | D14: 218000 | E14: 219500 | F14: 206800 | G14: 192000
A17: COSTS
A18: Salaries | B18: 109000 | C18: 98000 | D18: 99000 | E18: 93000 | F18: 95000 | G18: 83000
A19: Telephone | B19: 7500 | C19: 6000 | D19: 5500 | E19: 4500 | F19: 6300 | G19: 7200
A20: Rent | B20: 25000 | C20: 25000 | D20: 25000 | E20: 25000 | F20: 25000 | G20: 25000
A21: Total Costs | B21: =SUM(B18:B20) -> 141500 | C21: 129000 | D21: 129500 | E21: 122500 | F21: 126300 | G21: 115200
A24: Gross Profit | B24: =B14-B21 -> 191500 | C24: 71000 | D24: 88500 | E24: 97000 | F24: 80500 | G24: 76800
A25: Estimated Tax | B25: =B24*$B$29 -> 38300 | C25: 14200 | D25: 17700 | E25: 19400 | F25: 16100 | G25: 15360
A26: Estimated Net | B26: =B24-B25 -> 153200 | C26: 56800 | D26: 70800 | E26: 77600 | F26: 64400 | G26: 61440
A29: Average tax rate - according to previous years | B29: 0.2
A46: If the chart is built without the yellow cell, it is a total mess !
A47: And trying to work it out manually is useless …
A49: Simply include the yellow cell in the selection and the chart is OK !
A51: You may also keep the green selection but without the series name in A26. The graph will be OK but the
A52: series name will be "Serie 1" and you will have to retrieve the correct label through the SELECT DATA button.

Sheet Secondary axis
B2: Number of houses sold | C2: Total sales | D2: Price per unit
A3: House A | B3: 25 | C3: =B3*D3 -> 15000000 | D3: 600000
A4: House B | B4: 50 | C4: =B4*D4 -> 25000000 | D4: 500000
A5: House C | B5: 90 | C5: =B5*D5 -> 36000000 | D5: 400000
A6: House D | B6: 30 | C6: =B6*D6 -> 21000000 | D6: 700000
J10: CHANGE CHART TYPE button
J11: Do not change the type because it will affect the whole chart …
J12: Select at bottom of dialog box the corresponding series
J13: Change the type
J15: Add secondary axis (working on the series options and not through adding elements)
A29: Other possibility : choose "logarithmic scale" for the y axis
A30: advantage : no visible secondary axis - possibility to add another series such as the price per unit

Sheet Error bars
B2: Number of houses on sale | C2: Estimated sales
A3: House A | B3: 25 | C3: 20
A4: House B | B4: 50 | C4: 45
A5: House C | B5: 90 | C5: 80
A6: House D | B6: 30 | C6: 28

Sheet Error bars - custom
A2: Tests | B2: Step 1 | C2: Step 2 | D2: Step 3
A3: Average result | B3: 25 | C3: 20 | D3: 29
A4: Scenario 1 - more | B4: 3 | C4: 5 | D4: 3
A5: Scenario 2 - less | B5: 5 | C5: 3 | D5: 1
A10: Column understanding (ONE series) | E10: Row understanding (THREE series)

Sheet Trend line
J1: Trend line is found in the list of elements you can add to a chart
A3: Swarovski | O3: 1 | P3: Jan | Q3: 29
A4: beads | O4: 2 | P4: Feb | Q4: 43
A5: Sales | O5: 3 | P5: Mar | Q5: 64
O6: 4 | P6: Apr | Q6: 89
O7: 5 | P7: May | Q7: 120
O8: 6 | P8: Jun | Q8: 160
O9: 7 | P9: Jul | Q9: 195
O10: 8 | P10: Aug | Q10: 250
O11: 9 | P11: Sep | Q11: 318
O12: 10 | P12: Oct
O13: 11 | P13: Nov
O14: 12 | P14: Dec
B21: The source cells include the missing data
A24: What is asked : add a trend line that will show the possible sales for the missing Nov-Dec months
A27: =A3 -> Swarovski | O27: 1 | P27: Jan | Q27: 29
A28: =A4 -> beads | O28: 2 | P28: Feb | Q28: 43
A29: Sales | O29: 3 | P29: Mar | Q29: 64
O30: 4 | P30: Apr | Q30: 89
O31: 5 | P31: May | Q31: 120
O32: 6 | P32: Jun | Q32: 160
O33: 7 | P33: Jul | Q33: 195
O34: 8 | P34: Aug | Q34: 250
O35: 9 | P35: Sep | Q35: 318
O36: 10 | P36: Oct
O37: 11 | P37: Nov
O38: 12 | P38: Dec
B45: Equation : option in the dialog box

Sheet Trend line and equation
A2: Average height according to age
A3: x | B3: y
A4: Height in m | B4: Age
A5: 1.2 | B5: 10
A6: 1.4 | B6: 12
A7: 1.6 | B7: 14
A8: 1.7 | B8: 16
A9: 1.8 | B9: 18
A17: The trend line indicates the progression
A18: The equation will let you calculate the height for an age omitted in the source data
A19: A 17 years old teeager would be ….. high
A22: The equation : | C22: y = 12.931x - 5.9138
C23: y=y axis point or in plain word : the age
A26: A bit of algèbre … | C26: 17=12.931x-5.9138 | F26: 14=12.931x-5.9138 | I26: 18=12.931x-5.9138
C27: 5.9138+17=12.931x-5.9138+5.9138 | F27: 5.9138+14=12.931x-5.9138+5.9138 | I27: 5.9138+18=12.931x-5.9138+5.9138
C28: 5.9138+17=12.931x | F28: 5.9138+14=12.931x | I28: 5.9138+18=12.931x
C29: 22.9138=12.931x | F29: 19.9138=12.931x | I29: 23.9138=12.931x
C30: x=22.9138/12.931 | F30: x=19.9138/12.931 | I30: x=23.9138/12.931
C31: =22.9138/12.931 -> 1.772005259 | F31: =19.9138/12.931 -> 1.54000464 | I31: =23.9138/12.931 -> 1.849338798
A33: personal comment : you need to be better at maths than me ….. I wonder why 14 and 18 rechecked with the formula don't show the same figure as in the chart …..

Sheet Bars
A2: Part of active population (25-64 and 25-34) with a diploma of secondary cycle (2008)
A5: In % | B5: 25-64 | C5: 25-34
A6: Australia | B6: 69.9 | C6: 82.5
A7: Finland | B7: 81.8 | C7: 90.1
A8: France | B8: 70 | C8: 82.9
A9: Germany | B9: 85.3 | C9: 85.8
A10: Hungaria | B10: 79.7 | C10: 85.6
A11: Italy | B11: 53.3 | C11: 68.9
A12: Netherlands | B12: 73.3 | C12: 82.4
A13: OCDE (average) | B13: 71.1 | C13: 80
A14: Spain | B14: 51.2 | C14: 65
A15: Sweden | B15: 85 | C15: 91.2
A16: United Kingdom | B16: 69.6 | C16: 46.6
A17: United States | B17: 88.7 | C17: 88.1
A19: Hints
A20: Add data labels (Outside End)
A21: Remove gridlines (click and DEL)
A22: Remove horizontal axis (click and DEL)
A23: Apply special colors to France and OCDE

Sheet Area
A2: Evolution from 1980 to 2011 of access to baccalauréat in France
A4: In % | B4: Bac général | C4: Bac technologique | D4: Bac professionnel
A5: 1985 | B5: 22 | C5: =38-22 -> 16
A6: 1986 | B6: 23 | C6: =40-23 -> 17 | E6: source : Ministère Education Nationale
A7: 1987 | B7: 24 | C7: =42-24 -> 18 | D7: 1 | E7: leaflet handed out to parents
A8: 1988 | B8: 26 | C8: =45-26 -> 19 | D8: 2 | E8: around year 2004
A9: 1989 | B9: 35 | C9: =48-35 -> 13 | D9: 4
A10: 1990 | B10: 35 | C10: =50-35 -> 15 | D10: =55-50 -> 5
A11: 1991 | B11: 37 | C11: =54-37 -> 17 | D11: =60-54 -> 6
A12: 1992 | B12: 38 | C12: =55-38 -> 17 | D12: =65-55 -> 10
A13: 1993 | B13: 38 | C13: =57-38 -> 19 | D13: =66-57 -> 9
A14: 1994 | B14: 40 | C14: =61-40 -> 21 | D14: =71-61 -> 10
A15: 1995 | B15: 37 | C15: =57-37 -> 20 | D15: =69-57 -> 12
A16: 1996 | B16: 36 | C16: =56-36 -> 20 | D16: =69-56 -> 13
A17: 1997 | B17: 35 | C17: =55-35 -> 20 | D17: =70-55 -> 15
A18: 1998 | B18: 35 | C18: =55-35 -> 20 | D18: 15
A19: 1999 | B19: 35 | C19: =55-35 -> 20 | D19: 15
A20: 2000 | B20: 34.2 | C20: 21.7 | D20: 14
A21: 2001 | B21: 33.9 | C21: 21.1 | D21: 14.2 | E21: source : INSEE - Internet on 23.10.2013
A22: 2002 | B22: 33.7 | C22: 21 | D22: 14.2
A23: 2003 | B23: 33.9 | C23: 20.7 | D23: 14.2
A24: 2004 | B24: 34.6 | C24: 20.4 | D24: 14.4
A25: 2005 | B25: 35.1 | C25: 19.9 | D25: 14.7
A26: 2006 | B26: 35.1 | C26: 18.8 | D26: 15.2
A27: 2007 | B27: 35.5 | C27: 18.6 | D27: 15.8
A28: 2008 | B28: 36.4 | C28: 18.3 | D28: 16.3
A29: 2009 | B29: 36.5 | C29: 17.9 | D29: 17
A30: 2010 | B30: 37.3 | C30: 17.7 | D30: 23.8
A31: 2011 | B31: 38.5 | C31: 17.1 | D31: 31.6
A51: Hints
A52: Area (preferably no 2)
A53: Button SELECT DATA | E53: <== | F53: 2016 release : sometimes it goes straight through with a good understanding
A54: - remove extra series created for "In %"
A55: - select the correct source range of cells for the years
A56: Horizontal axis : labels to align vertically
A57: Vertical axis : impossible to display 20% because source data is not 0.2 but 20 !

Sheet Scatter
A2: Profitability | B2: 64 | C2: 128 | D2: 256 | E2: 512 | F2: 1024 | G2: 2048
A3: A | B3: 79 | C3: 85 | D3: 69 | E3: 65 | F3: 48 | G3: 75
A4: B | B4: 56 | C4: 74 | D4: 41 | E4: 45 | F4: 84 | G4: 76
A5: C | B5: 78 | C5: 47 | D5: 52 | E5: 85 | F5: 95 | G5: 86
A6: D | B6: 96 | C6: 58 | D6: 63 | E6: 59 | F6: 84 | G6: 89
A8: Usual chart - X data is understood as linear values : FALSE !!!
A22: Caution
A23: Excel understands PROFITABILITY as a series (remove it)
A24: Category (X) axis labels are not read properly
A26: Chart type SCATTER - X values are understood as logarithmic - OK … | I26: 2016 ==> | J26: the suggestions include one with smoothed lines
A45: Caution
A46: Choose type number 2 or 4 (with smoothed lines - with straight lines)
A47: Work on the horizontal axis : max 2048 - major unit 256 (to show mutliple of 64)
A48: Caution : never type 64K - 256K … in source data or the axis will be standard whatever the type of chart
A51: Special : alternatives to Scatter type when source data is not "linear"
A53: Sales | B53: 2019-01-01 | C53: 2019-06-01 | D53: 2019-08-01
A54: Product 1 | B54: 16894 | C54: 18854 | D54: 23000
A55: Product 2 | B55: 20210 | C55: 19632 | D55: 25784 | H55: Automatic scatter with straight line and markers
A56: Product 3 | B56: 18052 | C56: 21135 | D56: 22458
A57: Product 4 | B57: 16000 | C57: 20456 | D57: 24182
A59: Automatic columns
A74: In the dialog box for horizontal axis, you will see that Axis Type is set on automatic.
A75: Try dates : same result
H76: Nothing can be done
A77: If you want to remove those "holes", set the axis type on Text | H77: The dialog box does not provide an option to hide the "holes"
H78: (which is normal as this is what scatters are for …)

Sheet Swiss Population
A2: Swiss population over the years (rounded data except the last 3 figures)
A3: Year | B3: Population
A4: 1800 | B4: 1800000
A5: 1820 | B5: 1956000
A6: 1850 | B6: 2392000
A7: 1880 | B7: 2831000
A8: 1900 | B8: 3315000
A9: 1910 | B9: 3753000
A10: 1920 | B10: 3880000
A11: 1930 | B11: 4066000
A12: 1941 | B12: 4265000
A13: 1950 | B13: 4714000
A14: 1960 | B14: 5429000
A15: 1970 | B15: 6269000
A16: 1980 | B16: 6365000
A17: 1990 | B17: 6673000
A18: 2000 | B18: 7209000
A19: 2004 | B19: 7364148
A20: 2008 | B20: 7701856
A21: 2012 | B21: 8036917
A42: Here creating a scatter chart is a must, whatever the real nature of dates
A43: Indeed the gap between the years is not equal
A44: (and moreover, Excel would not understand the "year" 1800 !)
A46: Hints
A47: Make sure the type shows the markers (to make gap between years evident)
A48: As usual : if necessary remove extra series of dates and point to correct cells for the horizontal axis
A49: Work on the axis : change the minimum (1800), maximum (2015), major unit (10) - Labels are also ABOVE
A50: Align the labels vertically
A51: Add data labels for the series but show only the years (X Value) and of course keep Leader Lines
A52: Select the last 3-4 and move them as they are really too close

Sheet Fertility rate
A2: Other example for a scatter chart
E4: Normal line chart built on the green selection : impossible ! | K4: Scatter chart also built on the green selection
A5: Country | B5: Fertility rate (not real !) | C5: % women between 15-64
A6: A | B6: 1.2 | C6: 42
A7: BE | B7: 1.5 | C7: 38
A8: CH | B8: 1.2 | C8: 35
A9: D | B9: 1.1 | C9: 38
A10: DK | B10: 1.7 | C10: 51
A11: FIN | B11: 2 | C11: 54
A12: FR | B12: 1.3 | C12: 45
A13: GR | B13: 1.5 | C13: 47
A14: IT | B14: 1 | C14: 32
A15: NL | B15: 1.2 | C15: 22
B16: x | C16: y
D20: There should be only one series : % women and the horizontal axis should | J20: This time the comprehension is correct. Simply work on the X axis scale
D21: display the fertility rates in ascending order | J21: (min : 0.9, max : 2, major unit : 0.1)
D22: You can remove the Fertility series and re-define the horizontal axis labels
D23: but oups : they are not in ascending order and no modification is possible … | J23: New since 2013 : the labels can point to a free range of cells
J25: Select the series and click on the PLUS button (on the right of chart)

Sheet Pie special
A2: Sales | B2: Year 2020
A3: Office 2019 | B3: 900 | D3: Note : the "small" series must always be the last ones !
A4: Office 2016 subscription | B4: 300
A5: Office 2016 licence | B5: 100
A6: Publisher | B6: 20
A7: Ms Project | B7: 15
A8: Adobe Acrobat DC | B8: 13
A9: Divers | B9: 10
A12: Hints
A13: Choose corresponding chart directly from the available types
A14: Add data labels (category + percentage only) - keep leader lines
A15: Series FORMAT dialog box - in the SERIES OPTIONS - make sure the second plot contains last 4 series
A16: Remove legend
A17: If necessary : enlarge plot area

Sheet Columns and negative values
A2: Year temperatures average - CANADA
B4: Max | C4: Min
A5: St. John's | B5: 8.6 | C5: 0.8
A6: Charbottetown | B6: 9.5 | C6: 0.8
A7: Halifax | B7: 10.7 | C7: 1.4
A8: Fredericton | B8: 11 | C8: 0.61 | D8: Columns with a few modifications (labels vertical alignment, adding chart title, legend at the top …)
A9: Québec | B9: 9 | C9: -1
A10: Montréal | B10: 10.9 | C10: 1.2
A11: Ottawa | B11: 10.7 | C11: 0.8
A12: Toronto | B12: 12.6 | C12: 5.2
A13: Winnipeg | B13: 8.1 | C13: -3.4
A14: Regina | B14: 8.9 | C14: -3.8
A15: Edmonton | B15: 8.7 | C15: 1.5
A16: Calgary | B16: 10.3 | C16: -2.6
A17: Vancouver | B17: 13.5 | C17: 6.1
A18: Victoria | B18: 13.9 | C18: 5.1
A19: Whitehouse | B19: 4.1 | C19: -6.2
A20: Yellowknife | B20: -0.8 | C20: -9.7
H23: The X axis labels should be at the bottom of chart !
H33: How to remove the tick marks on the axis line ?
H40: Vertical lines : simple minor gridlines !

Sheet Radar
A2: Comparative analysis | B2: Price | C2: Quality | D2: Design | E2: Options | F2: Services
A3: product A - ours | B3: 80 | C3: 90 | D3: 50 | E3: 60 | F3: 90
A4: product B - theirs | B4: 100 | C4: 80 | D4: 70 | E4: 80 | F4: 70
A7: The figures can come from internal tests, evaluation questions to clients and so on...
A8: The answers have been added and converted into percentages
A10: Note : the same type of chart could be used for analysing people : work, adaptability, QI, performances …
A13: Analysis : | B13: The chart created using above figures will show whether the product price is
B14: slightly above market if we should improve our design and options …
F17: * Office 2016-2019 : tick marks for axis
F18: combination a bit funny (if you do not
F19: do it this way the marks are not
F20: displayed ….. ????
A39: Hints
A40: Radar type 2 (with markers)
A41: Remove gridlines
A42: Vertical axis | B42: test in 2016 : impossible to show the line as before ! ????
B43: change major unit from 20 to 10

Sheet Stock
A2: Date | B2: Min | C2: Max | D2: Closing | G2: Port productivity
A3: 2001-04-03 | B3: 55.25 | C3: 56.375 | D3: 55.625
A4: 2001-04-04 | B4: 54.125 | C4: 56 | D4: 55.5 | G4: Containers movements | H4: Min | I4: Max | J4: Average
A5: 2001-04-05 | B5: 56 | C5: 56.375 | D5: 56.25 | G5: Antwerp | H5: 250 | I5: 600 | J5: =AVERAGE(H5:I5) -> 425
A6: 2001-04-06 | B6: 55.125 | C6: 56.375 | D6: 56.5 | G6: Havre | H6: 200 | I6: 700 | J6: =AVERAGE(H6:I6) -> 450
A7: 2001-04-07 | B7: 56 | C7: 56.625 | D7: 55.625 | G7: Hambourg | H7: 300 | I7: 550 | J7: =AVERAGE(H7:I7) -> 425
G8: Marseille | H8: 280 | I8: 530 | J8: =AVERAGE(H8:I8) -> 405
G9: Nice | H9: 400 | I9: 890 | J9: =AVERAGE(H9:I9) -> 645
A22: Caution : if Excel displays a msg box reminding you of the data order expected for the chosen stock type , it means that your data do not respect this order. Click on the OK button but no chart will be created. It is the case for example if you choose type no 2 using the above colored range of cells. You need to select type 1.
A24: By default markers are small and rectangular. They have been modified. Select series (here the CLOSING one) Click on the painting pot - select below MARKERS

Sheet Bubbles
B1: Info : in 2016 bubbles are in the scatter section !
A2: Affiliate | B2: Number of products | C2: Sales | D2: Market position
A3: Affiliate A | B3: 10 | C3: 80000 | D3: 25
A4: Affiliate B | B4: 12 | C4: 60000 | D4: 20
A5: Affiliate C | B5: 3 | C5: 90000 | D5: 30
A6: Affiliate D | B6: 25 | C6: 30000 | D6: 10
B7: size | C7: y | D7: x
A43: Hints
A44: No need to select a given range of cells before creating the chart : Excel understands wrongly everYthing !
A45: Select a range just to create the chart then cllick on the SELECT DATA button and remove everything
A46: Then click on the ADD button and start building the series, specifying the X, Y, size data

Sheet Scatter-bubble for 2 dimensions
B2: Britain | C2: Italy | D2: France
A3: Power distance x | B3: 2 | C3: 4 | D3: 6
A4: Individualism y | B4: 5 | C4: 10 | D4: 15
A6: Scatter chart | H6: Bubble chart
A23: Create a scatter and then SELECT DATA button : remove everything | F23: Create bubble and then SELECT DATA button : remove everything
A24: ADD button and create a serie for each country | F24: ADD button and create a serie for each country
C25: Power is the X value | I25: Power is the X value
C26: Individualism is the Y value | I26: Individualism is the Y value
I27: Leave size untouched ={1}
J28: (this means you could add a third figure …)
A40: Add the name as a data label for each serie
A41: Click on the marker to change its type
F42: Add the name as a data label for each serie

Sheet Tableau de bord
A1: Tableau de bord Points d'attention / risques | K1: Administré par :
K2: Mis à jour le : | L2: 2008-03-18
A3: Ref. | B3: Size | C3: Type | D3: Description | E3: Impacts Potentiels | F3: Prob. (1-10) | G3: Impact (1-10) | H3: Evolution | I3: Statut | J3: Date création | K3: Par | L3: Date résolution | M3: Resp. | N3: Actions correctrices | O3: Reduce to 50% | P3: Reduce to zero | Q3: Date Closed | R3: Days Open | S3: Critical (1/0)
A4: A | B4: 3 | C4: Operationel | F4: 7 | G4: 5 | H4: Stable | I4: Open | J4: dec 2006 | K4: PBD | M4: MSD
A5: B | B5: 4 | C5: Opérationnel | F5: 3 | G5: 4 | H5: Stable | I5: Clos | J5: 2007-01-01 | K5: PLS | L5: fev 2007 | M5: TDS
A6: C | B6: 3 | C6: Opérationnel | F6: 8 | G6: 1 | H6: Stable | I6: Clos | J6: 2007-01-01 | K6: PLS | L6: fev 2007 | M6: TDS
A7: D | B7: 3 | C7: Opérationnel | F7: 3 | G7: 4 | H7: Amélioration | I7: Open | J7: 2007-01-01 | K7: MSD | M7: LAC
A8: E | B8: 3 | C8: Opérationnel | F8: 2 | G8: 4 | H8: Stable | I8: Open | J8: 2007-06-01 | K8: PLS | M8: PLS
A9: F | B9: 3 | C9: Opérationnel | F9: 2 | G9: 5 | H9: Amélioration | I9: Open | J9: Q4 2007 | K9: PLS | M9: PBD
A10: G | B10: 3 | C10: Opérationnel | F10: 6 | G10: 7 | H10: Aggravation | I10: Open | J10: 2008-02-26 | K10: WKN | M10: PBD PLS
A11: H | B11: 3 | C11: Planning | F11: 6 | G11: 4 | H11: Amélioration | I11: Open | J11: 2008-02-26 | K11: SNN | M11: BLC
A12: I | B12: 2 | C12: Technologique | F12: 2 | G12: 4 | H12: Stable | I12: Open | J12: 2008-02-04 | K12: PWR | M12: PWR
A13: J | B13: 3 | C13: Planning | F13: 9 | G13: 3 | H13: Aggravation | I13: Open | J13: 2008-03-10 | K13: SNN | M13: PBD PLS
A14: K | B14: 2 | C14: Technologique | F14: 3 | G14: 4 | H14: Stable | I14: Open | J14: Janv 2008 | K14: PLS | M14: MSD

Sheet Graphique probabilité impact
A25: Series : each "data-point" is a series to which 3 variables have been assigned | G25: Representing risk through color shading : gradient fill with 3 colors (1 = green - 2 = orange - 3 = red). Choose the direction and then work on the three stops
A26: Texts and arrows along axes (X and Y) :
A27: 100% manual

Sheet Sparkline
B1: Sparkline chart = mini chart inside a cell
A3: Additional seasonal workers
B5: Business | C5: Agriculture | D5: Tourism
A6: January | B6: 0.02 | C6: 0.01 | D6: 0.01
A7: February | B7: 0.02 | C7: 0.01 | D7: 0.01
A8: March | B8: 0.02 | C8: 0.01 | D8: 0.01
A9: April | B9: 0.02 | C9: 0.01 | D9: 0.01
A10: May | B10: 0.02 | C10: 0.1 | D10: 0.05
A11: June | B11: 0.02 | C11: 0.12 | D11: 0.08
A12: July | B12: 0.04 | C12: 0.15 | D12: 0.15
A13: August | B13: 0.04 | C13: 0.2 | D13: 0.15
A14: September | B14: 0.02 | C14: 0.15 | D14: 0.08
A15: October | B15: 0.02 | C15: 0.1 | D15: 0.01
A16: November | B16: 0.08 | C16: 0.01 | D16: 0.01
A17: December | B17: 0.1 | C17: 0.01 | D17: 0.1
A18: Sparkline

Sheet Drawn shapes
B1: Rain : average for July
A2: EUROPE | B2: Number of days
A3: Amsterdam | B3: 10
A4: Athens | B4: 1
A5: Barcelona | B5: 5
A6: Berlin | B6: 9
A7: Dublin | B7: 13
A8: Geneva | B8: 9
A9: Istanbul | B9: 3
A10: Lisbon | B10: 3
A11: Madrid | B11: 3
A12: Moscow | B12: 12
A13: Paris | B13: 11
A14: Prague | B14: 10
A15: Rome | B15: 2
A16: Stockholm | B16: 9
A17: Vienna | B17: 9
A29: Some hints
A30: Position | C30: ALT and drag = follow underlying cells
A31: Perfect shape | C31: Press the SHIFT key while drawing (release mouse button first)
A32: Drawing from the center outwards | C32: Press the CTRL key while drawing (release mouse button first)
A33: Perfect from the center !!! | C33: Combine the above two keys !
A34: Shape anchor | C34: According to active object : click on the chart ==> shape belongs to the chart / click onto the sheet ==> free
A35: Face shape | C35: By default it is smiling. To turn it into a sad face : drag the little yellow round button.
C36: Hint : zoom in otherwise you hardly see the button

Sheet Drawn shapes - To do
B1: Rain : average for July
A2: EUROPE | B2: Number of days
A3: Amsterdam | B3: 10
A4: Athens | B4: 1
A5: Barcelona | B5: 5
A6: Berlin | B6: 9
A7: Dublin | B7: 13
A8: Geneva | B8: 9
A9: Istanbul | B9: 3
A10: Lisbon | B10: 3
A11: Madrid | B11: 3
A12: Moscow | B12: 12
A13: Paris | B13: 11
A14: Prague | B14: 10
A15: Rome | B15: 2
A16: Stockholm | B16: 9
A17: Vienna | B17: 9

Sheet SmartArt

Sheet SmartArt - To do
